bitfinex-derivatives/quotes_ETHF0:USTF0_20251003
["timestamp","ask_amount","ask_price","bid_price","bid_amount"]
[1759514289236,0.40159,4479.0,4478.9,0.232]
[1759514289426,1.55519,4479.0,4478.9,0.232]
[1759514289822,2.00539,4479.0,4478.9,7.52e-06]
[1759514290037,0.40163,4478.6,4478.5,0.232]
[1759514290232,1.55523,4478.6,4478.5,0.232]
[1759514290636,4.51393927,4478.6,4478.5,0.232]
[1759514291124,4.51393927,4478.6,4478.5,0.23404332]
[1759514291325,1.55523,4478.6,4478.5,0.23404332]
[1759514291531,0.40163,4478.6,4478.5,1.34824332]
[1759514291733,1.1536,4479.2,4478.5,1.34824332]
[1759514291930,0.40163,4478.7,4478.5,0.68344332]
[1759514292132,0.40163,4478.7,4478.6,1.1142]
[1759514292331,1.1536,4478.6,4478.5,0.23404332]
[1759514292839,4.00059162,4478.6,4478.5,0.23404332]
[1759514293338,1.55527,4478.1,4478.0,0.232]
[1759514293730,0.40175,4477.2,4477.0,1.19559465]
[1759514293930,0.40177,4477.0,4476.9,3.2078]
[1759514294133,0.40177,4477.1,4476.9,3.4398]
[1759514294328,0.40450504,4477.1,4477.0,1.1142]
[1759514294527,1.1536,4477.0,4476.9,0.23373367]
[1759514294732,0.40450504,4477.1,4477.0,1.1142]
[1759514294924,0.40450504,4477.1,4476.9,1.34793367]
[1759514295134,0.40450504,4477.1,4477.0,1.1142]
[1759514295333,0.40450504,4477.1,4476.9,0.23373367]
[1759514295528,1.55810504,4477.1,4476.9,0.23373367]
[1759514295732,0.40450504,4477.1,4477.0,1.1142]
[1759514295934,0.40450504,4477.1,4476.9,0.23373367]
[1759514296437,1.1536,4477.0,4476.9,0.23373367]
[1759514296736,4.55500596,4477.0,4476.9,0.23373367]
[1759514297641,4.10480596,4477.0,4476.9,0.23373367]
[1759514297936,0.40450504,4477.1,4476.9,0.23373367]
[1759514298131,1.1536,4477.0,4476.9,0.23373367]
[1759514298334,4.00581046,4477.0,4476.9,0.23373367]
[1759514298731,1.55541,4476.5,4476.4,3.2078]
[1759514299334,1.1536,4476.3,4476.2,0.232]
[1759514299533,0.00273504,4477.1,4476.3,1.1142]
[1759514299732,0.40177,4477.0,4476.8,1.1142]
[1759514299931,0.40177,4477.0,4476.9,1.3462]
[1759514300831,0.40177,4477.0,4476.9,0.232]
[1759514301034,1.55537,4477.0,4476.9,0.232]
[1759514301438,0.40182,4476.4,4476.3,0.0021801]
[1759514301636,1.55542,4476.4,4476.3,0.0021801]
[1759514302043,4.43921207,4476.4,4476.3,0.0021801]
[1759514302335,4.03739207,4476.4,4476.3,0.0021801]
[1759514302541,0.40182,4476.5,4476.3,1.1163801]
[1759514302843,1.55542,4476.5,4476.4,0.233]
[1759514303137,0.40181,4476.6,4476.4,0.233]
[1759514303441,4.55890108,4476.5,4476.3,0.0021801]
[1759514303635,1.55548,4475.8,4475.7,3.4408]
[1759514303830,0.40188,4475.8,4475.7,3.2078]
[1759514304537,0.40188,4475.8,4475.7,0.00198666]
[1759514304538,1.55548,4475.8,4475.7,0.00198666]
[1759514304732,1.1536,4475.7,4475.6,6.66e-06]
[1759514304940,0.40194,4475.1,4475.0,0.233]
[1759514305134,1.55554,4475.1,4475.0,0.233]
[1759514305742,1.55554,4475.1,4475.0,0.15386951]
[1759514305934,4.522304,4475.1,4475.0,0.00245035]
[1759514306847,0.40199,4474.6,4474.5,3.2078]
[1759514307036,0.40199,4474.6,4474.5,4.555]
[1759514307441,4.71399,4474.6,4474.5,0.233]
[1759514307636,7.66140428,4474.6,4474.5,0.233]
[1759514307939,6.55720428,4474.6,4474.5,0.23511385]
[1759514308142,7.66140428,4474.6,4474.5,0.23511385]
[1759514308832,0.40197,4474.8,4474.5,0.23511385]
[1759514309039,1.1042,4474.6,4474.5,0.23511385]
[1759514309542,4.07443685,4474.6,4474.5,0.00211385]
[1759514309743,7.28223685,4474.6,4474.5,0.00211385]
[1759514310449,4.312,4474.6,4474.5,0.00211385]
[1759514310744,3.2078,4474.6,4474.5,1.12961385]
[1759514310939,3.2078,4474.6,4474.5,0.00211385]
[1759514311144,0.40197,4474.8,4474.5,0.00211385]
[1759514311343,4.545,4475.4,4474.5,0.00211385]
[1759514311344,4.07468363,4474.6,4474.5,0.00211385]
[1759514311749,1.1042,4474.6,4474.5,0.00211385]
[1759514312240,3.2078,4475.4,4474.5,0.23511385]
[1759514312442,4.3016,4475.4,4474.6,1.0982]
[1759514312642,2.84810042,4475.3,4474.5,1.73530385]
[1759514312841,4.34383042,4475.3,4474.8,0.40197]
[1759514313044,1.0938,4475.2,4474.6,3.2078]
[1759514313249,0.40199,4474.6,4474.5,0.00211385]
[1759514313444,1.49579,4474.6,4474.5,0.00211385]
[1759514313644,4.42901438,4474.6,4474.5,0.00211385]
[1759514314346,4.02702438,4474.6,4474.5,0.00211385]
[1759514314951,1.0938,4474.6,4474.5,0.00211385]
[1759514315950,4.03632998,4474.6,4474.5,0.00211385]
[1759514316652,4.03632998,4474.6,4474.0,3.85e-06]
[1759514316653,0.40203,4474.1,4474.0,3.85e-06]
[1759514316843,0.40203,4474.1,4473.5,0.17440903]
[1759514316844,1.5358,4474.0,4473.5,0.18037874]
[1759514317146,0.40206,4473.8,4473.6,1.0982]
[1759514317343,2.85425935,4473.9,4473.4,0.63509]
[1759514317344,0.40208,4473.6,4473.4,0.233]
[1759514317546,1.0938,4473.5,4473.4,0.233]
[1759514317747,1.09656806,4473.5,4473.4,0.23552556]
[1759514318340,0.00276806,4473.5,4473.4,1.73581556]
[1759514318749,0.00276806,4473.5,4473.4,1.33372556]
[1759514318948,1.09656806,4473.5,4473.4,0.00252556]
[1759514319450,4.50954012,4473.5,4473.4,0.00252556]
[1759514319652,7.71734012,4473.5,4473.4,0.00252556]
[1759514320640,4.50954012,4473.5,4473.4,0.00252556]
[1759514320847,0.00276806,4473.5,4473.4,1.10072556]
[1759514321046,0.00276806,4473.5,4473.4,1.50281556]
[1759514321352,0.00276806,4473.5,4473.4,6.50281556]
[1759514321740,1.0938,4474.6,4473.4,6.50281556]
[1759514322045,0.402,4474.5,4474.2,1.0982]
[1759514322243,1.0938,4473.7,4473.6,3.2078]
[1759514322441,1.0938,4473.7,4473.6,0.232]
[1759514322643,1.0938,4473.5,4473.4,0.00252556]
[1759514322844,0.00195061,4473.5,4473.4,1.10072556]
[1759514323048,0.00195061,4473.5,4473.4,4.30852556]
[1759514323548,0.00195061,4473.5,4473.4,4.54052556]
[1759514323739,0.00195061,4473.5,4473.4,9.54052556]
[1759514323940,1.0938,4474.9,4473.8,1.0982]
[1759514324144,1.0938,4474.9,4474.0,1.538]
[1759514324438,0.40197,4474.8,4474.2,0.40202]
[1759514324644,0.40199,4474.6,4474.2,0.40202]
[1759514324940,1.0938,4474.3,4474.2,1.0982]
[1759514325347,0.00209038,4474.6,4474.2,0.232]
[1759514325546,1.49581,4474.3,4474.2,0.232]
[1759514325744,0.00209038,4474.6,4474.3,1.0982]
[1759514326056,0.40408038,4474.6,4474.4,1.0982]
[1759514326252,0.40408038,4474.6,4474.2,0.232]
[1759514326253,1.0938,4474.3,4474.2,0.232]
[1759514326548,0.40202,4474.2,4473.9,3.2078]
[1759514326750,0.00209038,4474.6,4474.1,1.0982]
[1759514326958,0.00209038,4474.6,4474.0,0.6718]
[1759514326959,0.00209038,4474.6,4474.5,1.538]
[1759514327254,0.00209038,4474.6,4474.5,1.77]
[1759514327452,0.00209038,4474.6,4474.5,1.3302]
[1759514328053,1.49788038,4474.6,4474.5,0.232]
[1759514328248,1.49788038,4474.6,4474.5,1.3302]
[1759514328249,0.00209038,4474.6,4474.5,1.3302]
[1759514328450,0.00209038,4474.6,4474.5,1.77]
[1759514328644,0.00209038,4474.6,4474.5,2.172]
[1759514329050,0.00209038,4474.6,4474.5,1.77]
[1759514329749,0.00209038,4474.6,4474.5,1.3302]
[1759514330551,0.00209038,4474.6,4474.5,1.77]
[1759514330854,3.2078,4475.6,4475.5,1.0982]
[1759514331061,3.2078,4475.6,4475.5,1.3302]
[1759514331753,3.20949481,4475.6,4475.5,1.3302]
[1759514332359,0.00169481,4475.6,4475.5,1.77]
[1759514332752,1.09549481,4475.6,4475.5,0.232]
[1759514333860,0.00169481,4475.6,4475.5,1.77]
[1759514334162,0.00169481,4475.6,4475.5,4.9778]
[1759514334858,0.00169481,4475.6,4475.5,9.9778]
[1759514335060,0.00169481,4475.6,4475.5,11.17339465]
[1759514335260,1.49739481,4475.6,4475.5,3.2078]
[1759514335459,1.0938,4475.1,4475.0,4.40339465]
[1759514335757,0.40193,4475.2,4475.1,1.0982]
[1759514335958,1.49573,4475.2,4475.0,3.4398]
[1759514336161,0.40193,4475.2,4475.0,0.232]
[1759514336355,1.0938,4475.1,4475.0,0.232]
[1759514336660,0.40193,4475.2,4475.1,1.0982]
[1759514336867,1.0938,4475.1,4475.0,0.232]
[1759514337160,1.0938,4474.5,4474.4,3.2078]
[1759514337356,0.40199,4474.6,4474.4,3.2078]
[1759514337357,0.40199,4474.6,4474.5,1.0982]
[1759514337961,1.49579,4474.6,4474.5,1.0982]
[1759514338156,0.40199,4474.6,4474.5,1.0982]
[1759514338367,0.40198,4474.7,4474.6,1.0982]
[1759514338863,1.4958,4474.5,4474.4,3.4398]
[1759514339061,0.402,4474.5,4474.4,4.538]
[1759514339257,1.4958,4474.5,4474.4,3.4398]
[1759514339462,1.4958,4474.5,4474.4,0.232]
[1759514339666,0.402,4474.5,4474.4,1.3302]
[1759514339963,0.40198,4474.7,4474.5,1.0982]
[1759514340159,1.0938,4475.3,4474.6,1.0982]
[1759514340463,0.00169481,4475.6,4475.0,0.4398]
[1759514340660,1.0938,4475.5,4475.2,1.0982]
[1759514340962,0.40193,4475.3,4475.2,1.0982]
[1759514341262,1.0938,4475.2,4475.1,0.232]
[1759514341762,2.09877,4474.6,4474.0,1.0982]
[1759514341956,1.1449,4474.4,4474.1,1.3107]
[1759514342151,0.40202,4474.2,4474.1,1.3107]
[1759514342556,0.40205,4473.9,4473.8,3.2078]
[1759514342760,1.54695,4473.9,4473.8,3.4398]
[1759514343059,0.40205,4473.9,4473.8,4.5185]
[1759514343256,0.40204,4474.1,4473.8,3.4398]
[1759514343456,0.40204,4474.0,4473.9,1.0787]
[1759514343959,1.1449,4474.6,4473.8,4.6963815]
[1759514344159,4.3527,4475.2,4474.7,1.0787]
[1759514344371,0.40195,4475.0,4474.9,1.0787]
[1759514344559,0.40195,4475.0,4474.8,0.232]
[1759514344560,1.1449,4474.9,4474.8,0.232]
[1759514345264,0.40195,4475.0,4474.9,1.0787]
[1759514345670,1.54685,4475.0,4474.9,1.0787]
[1759514346261,1.1449,4474.9,4474.8,0.232]
[1759514346762,4.04480308,4474.9,4474.8,0.232]
[1759514347559,0.40203,4474.1,4473.9,1.19559465]
[1759514347864,1.54695,4473.9,4473.8,4.5185]
[1759514348171,0.40204,4474.0,4473.9,1.0787]
[1759514348870,3.2078,4475.2,4475.0,0.40195]
[1759514349068,0.40192,4475.3,4475.1,0.232]
[1759514349261,4.41385381,4475.1,4475.0,0.232]
[1759514349460,1.54684,4475.1,4475.0,0.232]
[1759514349863,4.51770284,4475.1,4475.0,0.232]
[1759514350464,1.54684,4475.1,4475.0,0.232]
[1759514351379,0.00169481,4475.6,4475.1,1.0787]
[1759514351664,0.40191,4475.5,4475.4,1.0787]
[1759514351874,0.00169481,4475.6,4475.5,1.0787]
[1759514352266,0.40359481,4475.6,4475.5,1.0787]
[1759514352767,0.00169481,4475.6,4475.5,1.0787]
[1759514353066,0.00169481,4475.6,4475.5,2.70748775]
[1759514353274,1.14659481,4475.6,4475.5,1.0787]
[1759514353466,0.40191,4475.5,4475.4,0.232]
[1759514353772,1.54681,4475.5,4475.4,1.3107]
[1759514353980,0.40194,4475.1,4474.9,2.68028367]
[1759514354271,0.40194,4475.1,4475.0,1.3107]
[1759514354670,1.00486,4475.1,4474.5,2.68028367]
[1759514354864,1.5798,4475.0,4474.7,1.202506]
[1759514355065,0.40199,4474.6,4474.5,1.434506]
[1759514355265,1.54689,4474.6,4474.5,1.434506]
[1759514355968,1.54688,4474.7,4474.6,1.0787]
[1759514356169,0.40198,4474.7,4474.5,1.434506]
[1759514356364,1.1449,4474.6,4474.5,1.434506]
[1759514356572,0.40198,4474.7,4474.6,1.0787]
[1759514356776,1.54688,4474.7,4474.5,1.434506]
[1759514356968,0.40198,4474.7,4474.5,2.513206]
[1759514357175,0.40198,4474.7,4474.6,1.0787]
[1759514357372,1.54688,4474.7,4474.5,1.434506]
[1759514357767,1.1449,4474.6,4474.5,1.434506]
[1759514359372,1.1449,4474.6,4474.5,2.513206]
[1759514359768,1.1449,4474.6,4474.5,0.232]
[1759514359968,1.1449,4474.6,4474.5,1.43465184]
[1759514360166,1.4399,4474.5,4474.1,3.2078]
[1759514360366,2.89929929,4474.6,4474.2,0.232]
[1759514360570,3.2078,4474.7,4474.3,1.0787]
[1759514360571,3.60978,4474.7,4474.3,1.0787]
[1759514360867,3.60978,4474.7,4474.6,1.0787]
[1759514360868,3.2078,4474.7,4474.6,1.0787]
[1759514361168,4.35439481,4475.6,4474.6,3.4398]
[1759514361370,0.40192,4475.4,4475.1,1.0787]
[1759514361672,0.40192,4475.4,4475.0,0.4276]
[1759514361673,0.40193,4475.3,4475.2,1.3107]
[1759514362068,3.20949481,4475.6,4475.2,1.3107]
[1759514362069,3.20949481,4475.6,4475.4,0.40191]
[1759514362272,0.00169481,4475.6,4475.5,1.5063]
[1759514362777,0.00169481,4475.6,4475.5,1.7383]
[1759514362968,3.2078,4476.2,4475.5,1.7383]
[1759514362969,3.2078,4476.2,4476.1,1.0787]
[1759514363273,3.2078,4476.2,4476.1,1.3107]
[1759514363472,4.3527,4476.2,4476.1,0.232]
[1759514363873,4.35469747,4476.2,4476.1,0.232]
[1759514365280,0.4349,4476.0,4475.2,3.2078]
[1759514365471,0.4349,4476.0,4475.0,1.0787]
[1759514365472,0.40194,4475.1,4475.0,1.0787]
[1759514365668,0.40196,4474.9,4474.8,1.0787]
[1759514365882,1.00477,4475.5,4474.6,3.2078]
[1759514365883,1.54688,4474.7,4474.6,3.2078]
[1759514366086,1.54688,4474.7,4474.6,4.5185]
[1759514366374,1.54688,4474.7,4474.6,3.4398]
[1759514366578,1.43967,4475.5,4474.6,4.5185]
[1759514366778,1.00481,4475.3,4474.6,4.5185]
[1759514366968,1.43967,4475.5,4474.6,3.4398]
[1759514366969,1.42548,4474.7,4474.6,3.4398]
[1759514367768,0.40198,4474.7,4474.6,4.5379]
[1759514368776,1.42548,4474.7,4474.6,4.5379]
[1759514369380,1.42548,4474.7,4474.6,3.4398]
[1759514369674,1.0235,4475.4,4474.6,3.4398]
[1759514369881,1.0235,4475.4,4474.7,1.0981]
[1759514370084,3.98579329,4475.4,4474.7,1.0981]
[1759514370381,0.40193,4475.2,4474.8,1.0981]
[1759514370579,3.2078,4475.6,4475.5,0.43]
[1759514370875,0.00199747,4476.2,4475.6,1.0981]
[1759514370876,3.20979747,4476.2,4475.6,1.0981]
[1759514371084,0.40185,4476.1,4475.7,0.40188]
[1759514371276,0.40187,4476.0,4475.9,1.0981]
[1759514371480,0.00199747,4476.2,4476.1,1.0981]
[1759514371781,0.00199747,4476.2,4476.1,1.3301]
[1759514372784,1.03899747,4476.2,4475.8,3.2078]
[1759514373080,0.00199747,4476.2,4475.9,0.232]
[1759514373379,0.40186,4476.0,4475.9,1.3177]
[1759514373778,0.40384747,4476.2,4475.9,1.3177]
[1759514374081,1.037,4476.0,4475.9,0.232]
[1759514374275,1.037,4475.4,4475.3,1.60158367]
[1759514374469,1.45136,4476.0,4475.4,1.0857]
[1759514374470,0.40189,4475.7,4475.4,1.0857]
[1759514374675,0.40187,4475.9,4475.4,1.0857]
[1759514374870,0.40189,4475.7,4475.3,0.232]
[1759514375081,2.91094217,4475.9,4475.3,0.232]
[1759514375277,0.4019,4475.6,4475.3,0.232]
[1759514375478,0.40191,4475.5,4475.3,0.232]
[1759514375787,0.40191,4475.5,4475.4,1.0857]
[1759514375986,0.4019,4475.6,4475.3,0.232]
[1759514376171,1.037,4475.5,4475.0,0.43]
[1759514376373,1.00488,4475.1,4474.6,3.2078]
[1759514376676,1.037,4474.8,4474.6,0.232]
[1759514376983,4.30973,4474.7,4474.6,0.232]
[1759514377383,1.43898,4474.7,4474.6,0.232]
[1759514377583,4.30973,4474.7,4474.6,0.232]
[1759514377885,1.43907,4473.6,4473.5,3.2078]
[1759514378081,0.40207,4473.6,4473.5,3.2078]
[1759514378285,0.40207,4473.7,4473.5,3.2078]
[1759514378488,0.40208,4473.5,4473.1,1.0857]
[1759514378679,1.43908,4473.5,4473.4,0.23452556]
[1759514379386,1.43908,4473.5,4473.4,0.00252556]
[1759514379684,7.95019584,4473.5,4473.4,0.00252556]
[1759514379886,12.95019584,4473.5,4473.4,5.56e-06]
[1759514381897,1.88583,4473.0,4472.9,2.67e-06]
[1759514382186,8.24945818,4473.0,4472.9,2.67e-06]
[1759514382582,8.01745818,4473.0,4472.9,2.67e-06]
[1759514382785,8.01928797,4473.0,4472.9,0.00166318]
[1759514383176,8.25128797,4473.0,4472.9,0.00166318]
[1759514383787,13.25128797,4473.0,4472.9,0.00166318]
[1759514384182,13.25128797,4473.0,4471.5,3.6203]
[1759514384183,1.00557,4472.0,4471.3,1.2001904]
[1759514384487,0.40226,4471.6,4471.3,0.232]
[1759514384785,0.232,4472.3,4471.3,0.232]
[1759514384786,0.40219,4472.4,4471.6,1.0857]
[1759514384991,1.00529,4473.2,4471.5,3.6203]
[1759514384992,0.00182979,4473.0,4472.2,1.0857]
[1759514385191,0.40218,4472.4,4472.2,0.0017415]
[1759514385387,3.32478547,4472.9,4472.5,0.4125]
[1759514385686,0.40214,4472.9,4472.6,3.4398]
[1759514385890,0.00182979,4473.0,4472.7,1.0857]
[1759514386192,0.40215,4472.8,4472.7,1.0857]
[1759514386392,0.00182979,4473.0,4472.6,3.4398]
[1759514386594,0.40215,4472.8,4472.7,1.0857]
[1759514387086,0.00182979,4473.0,4472.6,3.4398]
[1759514387292,0.40395979,4473.0,4472.6,3.4398]
[1759514387484,0.00182979,4473.0,4472.7,1.48785]
[1759514387793,0.00182979,4473.0,4472.7,1.0857]
[1759514388194,0.40216,4472.7,4472.6,4.5255]
[1759514388394,0.40216,4472.7,4472.6,3.4398]
[1759514388594,0.40216,4472.7,4472.6,4.5255]
[1759514388894,0.40396979,4473.0,4472.7,1.0857]
[1759514389192,0.00182979,4473.0,4472.9,1.0857]
[1759514392393,0.00182979,4473.0,4472.9,6.0857]
[1759514392791,3.2078,4474.2,4473.6,1.0857]
[1759514392999,3.2078,4474.2,4473.5,0.4125]
[1759514393000,0.40205,4474.0,4473.7,0.232]
[1759514393193,0.40204,4474.0,4473.8,1.0857]
[1759514393591,0.40204,4474.0,4473.7,0.232]
[1759514393790,0.40425376,4474.0,4473.7,0.232]
[1759514393991,0.40205,4473.9,4473.8,1.0857]
[1759514394399,1.037,4473.8,4473.7,0.232]
[1759514395895,0.40205,4473.9,4473.7,0.232]
[1759514396092,1.037,4473.8,4473.7,0.232]
[1759514396701,1.037,4473.6,4472.7,3.2078]
[1759514396908,0.40211,4473.2,4472.8,0.232]
[1759514397096,0.40211,4473.2,4473.0,0.4125]
[1759514397297,0.40211,4473.2,4473.1,1.0857]
[1759514397798,0.40209,4473.4,4473.1,1.0857]
[1759514397998,0.40209,4473.5,4473.1,1.0857]
[1759514398494,0.40209,4473.5,4473.0,0.4125]
[1759514398700,2.86075684,4473.6,4473.0,0.4125]
[1759514398996,1.43912,4473.2,4473.1,0.232]
[1759514399794,3.2078,4473.7,4473.1,0.232]
[1759514400095,0.00221376,4474.0,4473.3,1.0857]
[1759514400296,0.00221376,4474.0,4473.9,1.48775]
[1759514400500,0.00221376,4474.0,4473.9,1.3177]
[1759514400898,4.2448,4475.2,4474.3,0.402]
[1759514401098,3.2078,4475.2,4474.7,1.0857]
[1759514401293,1.037,4475.0,4474.8,0.232]
[1759514401495,1.43896,4474.9,4474.8,0.232]
[1759514401691,1.037,4474.8,4474.6,0.232]
[1759514401896,4.2448,4474.7,4474.6,0.232]
[1759514402095,1.005,4474.5,4473.5,2.6983904]
[1759514402304,0.40204,4474.0,4473.7,1.0677]
[1759514402492,1.045,4474.1,4473.4,1.2001904]
[1759514402697,0.40208,4473.5,4473.4,1.2997]
[1759514402997,1.045,4472.7,4472.6,3.2078]
[1759514403196,1.045,4473.3,4472.6,0.232]
[1759514403396,0.40214,4472.9,4472.7,1.0677]
[1759514403698,2.88987846,4473.3,4473.1,0.40212]
[1759514403897,1.045,4474.1,4473.2,1.70181]
[1759514404097,1.045,4474.1,4473.2,1.2997]
[1759514404098,0.40206,4473.8,4473.2,1.2997]
[1759514404409,2.87696394,4474.0,4473.7,1.0677]
[1759514404699,3.2078,4474.5,4473.8,1.2997]
[1759514404901,0.40202,4474.3,4473.8,1.70175]
[1759514405094,0.40204,4474.0,4473.9,1.0677]
[1759514405400,3.2078,4474.5,4473.8,0.232]
[1759514405702,3.2078,4474.5,4473.9,1.0677]
[1759514405905,0.00167974,4474.8,4474.7,1.46968]
[1759514406197,0.00167974,4474.8,4474.7,2.2678904]
[1759514406406,1.045,4474.7,4474.6,0.232]
[1759514406697,1.44698,4474.7,4474.6,0.232]
[1759514406896,4.31951556,4474.7,4474.6,0.232]
[1759514407495,9.31951556,4474.7,4474.6,0.232]
[1759514407694,4.31951556,4474.7,4474.6,0.232]
[1759514409699,0.00167974,4474.8,4474.6,0.232]
[1759514410004,0.00167974,4474.8,4474.7,1.0677]
[1759514410305,0.00167974,4474.8,4474.6,0.232]
[1759514410306,1.44698,4474.7,4474.6,0.232]
[1759514410803,0.00167974,4474.8,4474.7,1.0677]
[1759514411005,0.40364974,4474.8,4474.7,1.0677]
[1759514411200,1.045,4474.2,4474.1,1.2001904]
[1759514411401,0.40207,4473.7,4473.4,1.2997]
[1759514411606,0.40208,4473.6,4473.4,1.2997]
[1759514411906,1.045,4473.5,4473.4,0.232]
[1759514412305,0.40208,4473.6,4473.4,0.232]
[1759514412607,0.40208,4473.6,4473.5,1.0677]
[1759514412808,0.40211,4473.2,4473.0,1.2001904]
[1759514412998,0.40216,4472.7,4472.6,1.2001904]
[1759514413199,0.40216,4472.7,4472.6,0.232]
[1759514413400,2.89217228,4473.1,4472.7,1.0677]
[1759514413600,4.2528,4473.9,4473.1,1.46982]
[1759514413805,3.60985,4473.9,4473.5,0.4333]
[1759514414407,0.4021,4473.3,4473.1,1.2001904]
[1759514414708,4.65486,4473.9,4473.2,1.0677]
[1759514414904,0.4021,4473.4,4473.2,1.0677]
[1759514415109,0.40209,4473.5,4473.2,1.0677]
[1759514415409,3.2078,4473.9,4473.2,1.0677]
[1759514415609,3.2078,4473.9,4473.8,1.0677]
[1759514415906,3.60981,4474.4,4473.8,0.63405]
[1759514416206,0.00167974,4474.8,4474.0,4.7088]
[1759514416400,0.00167974,4474.8,4474.5,1.0677]
[1759514416703,0.00167974,4474.8,4474.7,1.0677]
[1759514416897,0.00167974,4474.8,4474.7,2.2678904]
[1759514417302,0.00167974,4474.8,4474.7,1.0677]
[1759514417504,0.00167974,4474.8,4474.7,7.6698704]
[1759514417704,3.2078,4475.6,4474.8,1.0677]
[1759514417904,3.2078,4475.6,4475.1,1.0677]
[1759514418206,3.2078,4475.6,4475.0,1.63399259]
[1759514418207,3.60965,4476.2,4475.6,1.0677]
[1759514418402,3.2078,4476.2,4475.7,0.232]
[1759514418602,3.2078,4476.8,4476.1,1.0677]
[1759514418803,0.40185,4476.1,4475.7,0.00185391]
[1759514419009,1.045,4476.0,4475.8,1.2997]
[1759514419312,1.045,4475.9,4475.8,0.232]
[1759514419505,1.44686,4476.1,4475.8,0.232]
[1759514419706,0.40186,4476.1,4475.9,1.0677]
[1759514420014,1.045,4475.8,4475.7,0.00185391]
[1759514420208,4.2528,4475.8,4475.7,0.00185391]
[1759514420405,12.19989979,4475.8,4475.7,0.00185391]
[1759514420908,1.045,4474.9,4474.6,1.20069259]
[1759514421109,1.045,4475.5,4474.8,1.0677]
[1759514421409,0.40193,4475.3,4474.8,1.0677]
[1759514421610,1.44693,4475.3,4474.7,3.4398]
[1759514421908,0.40194,4475.1,4474.7,0.23472371]
[1759514422303,0.40196,4475.0,4474.8,1.0677]
[1759514422502,1.44697,4474.8,4474.7,0.23472371]
[1759514422713,1.44697,4474.8,4474.7,0.00272371]
[1759514422714,4.65477,4474.8,4474.7,0.00272371]
[1759514423611,7.55974269,4474.8,4474.7,0.00272371]
[1759514425516,7.15777269,4474.8,4474.7,0.00272371]
[1759514425712,0.40193,4475.2,4474.7,0.00272371]
[1759514425909,1.045,4475.3,4474.7,0.00272371]
[1759514426111,0.40194,4475.1,4474.7,0.00272371]
[1759514426309,3.2078,4475.4,4474.7,0.00272371]
[1759514426310,0.40193,4475.2,4474.7,0.00272371]
[1759514426514,4.2528,4475.4,4474.8,1.0677]
[1759514426711,3.2078,4475.4,4474.7,0.00272371]
[1759514427213,3.2078,4476.0,4475.5,0.4019]
[1759514427416,0.40188,4475.8,4475.7,1.0677]
[1759514427611,3.2078,4476.0,4475.6,0.232]
[1759514427814,3.2078,4476.0,4475.8,0.40188]
[1759514428115,0.40184,4476.3,4475.8,3.2078]
[1759514428308,0.40184,4476.3,4475.7,1.20069259]
[1759514428309,0.40188,4475.8,4475.7,1.20069259]
[1759514428515,1.0023,4475.7,4475.6,0.232]
[1759514428908,3.92800413,4475.7,4475.6,0.232]
[1759514429116,1.0023,4475.4,4475.0,0.232]
[1759514429311,1.0023,4475.1,4475.0,0.232]
[1759514429619,3.2078,4475.2,4475.1,1.0356]
[1759514429910,3.60973,4475.2,4475.1,1.0356]
[1759514430110,3.60973,4475.2,4475.0,0.232]
[1759514430311,1.0023,4475.1,4475.0,0.232]
[1759514431709,3.60973,4475.2,4475.0,0.232]
[1759514431710,3.2078,4475.2,4475.1,1.0356]
[1759514431917,1.0023,4475.7,4475.1,1.0367]
[1759514432111,0.40193,4475.3,4475.1,1.0367]
[1759514432313,1.0073,4475.2,4475.1,1.0367]
[1759514432517,0.40192,4475.3,4475.0,0.232]
[1759514432718,0.40194,4475.2,4475.0,0.232]
[1759514432910,1.4092,4475.6,4475.0,0.232]
[1759514433110,0.40193,4475.2,4475.0,0.232]
[1759514433416,3.86940809,4475.1,4475.0,0.232]
[1759514435822,0.40207,4473.7,4473.6,1.60158367]
[1759514436018,1.40938,4473.6,4473.4,1.43196668]
[1759514436217,1.0073,4473.5,4473.4,0.231]
[1759514436918,1.0073,4473.5,4473.4,0.2336465]
[1759514438021,1.4344,4473.5,4473.4,0.2336465]
[1759514438221,4.37983324,4473.5,4473.4,6.5e-06]
[1759514438419,4.37983324,4473.5,4471.8,3.2078]
[1759514438420,0.40224,4471.9,4471.6,1.20096668]
[1759514438614,0.4271,4472.5,4471.6,1.20096668]
[1759514438615,3.2078,4472.3,4471.7,1.0367]
[1759514438815,1.0073,4472.4,4471.7,4.2445]
[1759514439017,1.0073,4472.9,4471.8,1.0367]
[1759514439230,0.40221,4472.2,4471.8,2.23766668]
[1759514439429,0.40222,4472.0,4471.8,1.20285074]
[1759514439616,0.00176788,4472.9,4471.9,1.0367]
[1759514439822,0.00176788,4472.9,4472.1,1.0367]
[1759514440015,0.00176788,4472.9,4472.1,2.23766668]
[1759514440319,1.0073,4472.8,4472.0,1.83096668]
[1759514440522,0.00176788,4472.9,4472.2,1.0367]
[1759514440724,0.00176788,4472.9,4472.8,1.0367]
[1759514440923,0.00176788,4472.9,4472.8,1.2677]
[1759514441924,1.00906788,4472.9,4472.8,0.231]
[1759514442320,0.40219,4472.3,4472.2,1.0367]
[1759514442515,1.00538,4472.8,4471.8,0.00188406]
[1759514442516,1.40953,4471.9,4471.8,0.00188406]
[1759514442720,4.61733,4471.9,4471.8,0.00188406]
[1759514442920,7.537864,4471.9,4471.8,0.00188406]
[1759514443316,12.768864,4471.9,4471.8,0.00188406]
[1759514444323,12.537864,4471.9,4471.8,0.00188406]
[1759514444522,0.40246,4469.8,4469.7,1.60158367]
[1759514444729,0.4271,4471.0,4469.7,1.60158367]